bitfinex-derivatives/quotes_ETHF0:USTF0_20240822
["timestamp","ask_amount","ask_price","bid_price","bid_amount"]
[1724314187302,0.37943,2634.6,2634.4,2.15105]
[1724314187494,5.5063,2634.7,2634.5,0.37944]
[1724314187699,5.88573,2634.7,2634.5,0.37944]
[1724314189392,5.88572,2634.7,2634.4,1.7716]
[1724314190204,0.37943,2634.6,2634.5,0.37944]
[1724314190506,5.88572,2634.7,2634.5,0.37944]
[1724314190700,0.37943,2634.6,2634.5,0.37944]
[1724314191207,0.37943,2634.6,2634.3,1.8523]
[1724314191208,0.37945,2634.5,2634.3,2.23176]
[1724314191400,3.58726,2634.4,2634.3,0.37946]
[1724314191801,3.2078,2634.4,2634.1,2.23179]
[1724314192104,0.37948,2634.2,2634.1,0.37949]
[1724314192702,5.84458,2634.3,2634.1,0.37949]
[1724314192897,5.84458,2634.3,2634.2,0.37948]
[1724314193397,5.4651,2634.3,2634.2,0.37948]
[1724314193602,1.8614,2634.3,2634.2,0.37948]
[1724314200510,6.6749,2634.5,2634.0,1.76284966]
[1724314200709,6.6749,2634.5,2634.4,0.37946]
[1724314200908,6.6749,2634.5,2634.1,1.8572]
[1724314201110,6.6749,2634.5,2634.4,0.37946]
[1724314201306,6.6749,2634.5,2634.3,0.37946]
[1724314202818,6.6749,2634.5,2634.1,1.8572]
[1724314203018,6.6749,2634.5,2634.4,0.37946]
[1724314203219,6.6749,2634.5,2634.3,0.37946]
[1724314203617,6.6749,2634.5,2634.4,1.8165]
[1724314204713,7.05434,2634.5,2634.4,1.8165]
[1724314204915,6.6749,2634.5,2634.3,0.37946]
[1724314205414,7.05434,2634.5,2634.3,0.37946]
[1724314206517,1.094,2634.4,2634.3,0.37946]
[1724314210220,1.094,2634.4,2634.2,2.19598]
[1724314210422,0.37947,2634.3,2634.2,2.19598]
[1724314210611,3.92607,2634.3,2634.2,2.19598]
[1724314210813,3.92607,2634.3,2634.2,0.37948]
[1724314211029,3.92607,2634.3,2634.1,2.09029]
[1724314211320,3.92607,2634.3,2634.0,0.00334966]
[1724314211321,1.4735,2634.1,2634.0,0.00334966]
[1724314212416,1.094,2634.1,2634.0,0.38285966]
[1724314212820,5.47619,2634.2,2634.1,0.3795]
[1724314212821,5.0967,2634.2,2634.1,0.3795]
[1724314213019,6.1907,2634.2,2634.1,0.3795]
[1724314213426,6.1907,2634.2,2634.1,2.2182]
[1724314214527,6.57018,2634.2,2634.1,1.8387]
[1724314214720,6.1907,2634.2,2634.1,2.2182]
[1724314214918,6.1907,2634.2,2634.1,0.3795]
[1724314215114,6.57018,2634.2,2634.0,0.38284966]
[1724314215322,1.094,2634.1,2634.0,0.38284966]
[1724314219323,5.0967,2634.2,2634.1,0.3795]
[1724314219633,3.2078,2634.2,2634.1,0.3795]
[1724314220230,3.2078,2634.2,2634.1,2.42225]
[1724314220427,3.2078,2634.2,2634.1,6.21825]
[1724314221126,4.3018,2634.5,2634.4,0.37946]
[1724314222023,4.3018,2634.5,2634.3,0.37946]
[1724314222321,4.6406,2634.4,2634.3,0.37946]
[1724314224021,4.6406,2634.4,2634.0,1.89094966]
[1724314224222,4.6406,2634.4,2634.3,0.37947]
[1724314225627,5.02006,2634.4,2634.2,0.37948]
[1724314225834,1.094,2634.3,2634.2,0.37948]
[1724314227646,1.47348,2634.3,2634.0,0.00334966]
[1724314227935,1.47348,2634.3,2634.2,0.37948]
[1724314227936,1.094,2634.3,2634.2,0.37948]
[1724314228127,3.5466,2634.4,2634.3,0.37947]
[1724314228128,6.4148,2634.4,2634.3,0.37947]
[1724314229019,1.094,2634.4,2634.3,0.37947]
[1724314231134,1.094,2634.4,2634.3,2.09727]
[1724314232327,1.094,2634.4,2634.3,0.37947]
[1724314233340,1.47346,2634.4,2634.3,0.37947]
[1724314233733,1.094,2634.4,2634.3,0.37947]
[1724314234432,1.47346,2634.4,2634.3,0.37947]
[1724314234933,0.37948,2634.3,2634.0,0.00334966]
[1724314235133,1.47348,2634.2,2634.0,0.00334966]
[1724314235335,1.094,2634.2,2634.1,0.37949]
[1724314235539,5.3968,2634.3,2634.2,0.37948]
[1724314235930,6.4908,2634.3,2634.2,0.37948]
[1724314236334,6.87027,2634.3,2634.2,0.37948]
[1724314236533,6.4908,2634.3,2634.0,0.00334966]
[1724314236737,1.094,2634.1,2634.0,0.38284966]
[1724314238738,1.4735,2634.1,2634.0,0.38284966]
[1724314239237,5.2703,2634.1,2634.0,0.00334966]
[1724314243337,5.2703,2634.1,2633.6,0.37956]
[1724314243338,0.37955,2633.8,2633.6,0.37956]
[1724314243540,3.83086,2633.7,2633.5,0.37958]
[1724314243744,1.094,2633.6,2633.5,0.37958]
[1724314244237,1.094,2633.6,2633.5,0.00424723]
[1724314244945,4.8908,2633.6,2633.5,0.00424723]
[1724314245338,5.27037,2633.6,2633.5,0.00424723]
[1724314246241,5.2047,2633.7,2633.5,0.38382723]
[1724314246549,6.2987,2633.7,2633.6,0.37957]
[1724314247245,2.8474,2633.7,2633.6,0.37957]
[1724314247446,3.2078,2633.8,2633.7,0.37956]
[1724314247655,3.2078,2633.8,2633.7,3.97396]
[1724314249150,3.2078,2633.8,2633.7,8.71966]
[1724314250348,0.00568473,2634.0,2633.9,0.37953]
[1724314250644,0.00568473,2634.0,2633.9,5.27033]
[1724314250846,0.00568473,2634.0,2633.9,4.17633]
[1724314253645,0.00568473,2634.0,2633.9,0.37953]
[1724314256545,5.69309473,2634.0,2633.9,0.37953]
[1724314256747,5.69309473,2634.0,2633.7,3.5944]
[1724314256748,0.37953,2633.9,2633.7,0.37954]
[1724314256956,1.094,2633.8,2633.7,0.37954]
[1724314258448,1.094,2633.8,2633.7,1.32844]
[1724314258846,1.094,2633.8,2633.7,0.37954]
[1724314261345,1.094,2633.8,2633.7,1.32844]
[1724314261750,1.094,2633.9,2633.8,0.37954]
[1724314263355,1.47353,2633.9,2633.8,0.37954]
[1724314263850,1.47353,2633.9,2633.7,0.37955]
[1724314263851,0.37956,2633.8,2633.7,0.37955]
[1724314264074,1.47356,2633.8,2633.7,0.37955]
[1724314265159,0.37957,2633.6,2633.5,0.00424723]
[1724314265353,1.47357,2633.6,2633.5,0.38382723]
[1724314265750,6.69777,2633.6,2633.5,0.38382723]
[1724314266356,6.69777,2633.6,2633.5,0.00424723]
[1724314266357,11.44351,2633.6,2633.5,0.00424723]
[1724314267346,10.49457,2633.6,2633.5,0.00424723]
[1724314273059,11.44351,2633.6,2633.5,0.00424723]
[1724314273560,16.44351,2633.6,2633.5,0.00424723]
[1724314274659,10.49457,2633.6,2633.5,0.00424723]
[1724314275465,5.2242,2633.6,2633.5,0.38383723]
[1724314275660,2.8354,2633.6,2633.5,0.38383723]
[1724314276457,3.21498,2633.6,2633.5,0.38383723]
[1724314276653,3.21498,2633.6,2633.5,0.00424723]
[1724314279368,2.8354,2633.6,2633.5,0.38383723]
[1724314281163,3.21498,2633.6,2633.5,0.00424723]
[1724314281467,2.8354,2633.6,2633.5,0.38383723]
[1724314283058,6.0432,2633.6,2633.5,0.38383723]
[1724314287272,3.2078,2633.6,2633.5,7.17259723]
[1724314287462,1.09968473,2634.0,2633.5,5.84402723]
[1724314287666,1.09968473,2634.0,2633.9,0.37953]
[1724314288171,1.09968473,2634.0,2633.9,4.17633]
[1724314288470,0.00568473,2634.0,2633.9,4.17633]
[1724314288868,0.00568473,2634.0,2633.9,0.37953]
[1724314289067,0.00568473,2634.0,2633.9,4.17633]
[1724314289769,0.00568473,2634.0,2633.9,0.37953]
[1724314289968,1.83288473,2634.0,2633.9,0.37953]
[1724314291265,0.00568473,2634.0,2633.9,0.37953]
[1724314294078,0.00568473,2634.0,2633.8,0.37954]
[1724314294575,0.37954,2633.9,2633.7,0.37955]
[1724314295176,0.37955,2633.8,2633.7,0.37956]
[1724314295787,0.37956,2633.8,2633.6,2.20007]
[1724314296080,5.61286,2633.7,2633.6,2.20007]
[1724314296480,9.0301,2633.7,2633.6,0.37957]
[1724314296872,9.40967,2633.7,2633.5,0.38382723]
[1724314297074,5.61287,2633.7,2633.5,0.38382723]
[1724314297674,0.37958,2633.6,2633.5,0.38382723]
[1724314297878,5.61287,2633.7,2633.5,0.38382723]
[1724314298176,0.37958,2633.6,2633.5,0.38382723]
[1724314298573,5.61287,2633.7,2633.5,0.38382723]
[1724314299679,0.37958,2633.6,2633.5,0.00424723]
[1724314299876,5.61287,2633.7,2633.5,0.38383723]
[1724314300680,5.61287,2633.7,2633.6,0.37958]
[1724314301182,9.40967,2633.7,2633.6,0.37958]
[1724314301374,9.40967,2633.7,2633.5,0.38382723]
[1724314301567,5.61287,2633.7,2633.5,0.38382723]
[1724314301770,0.37958,2633.6,2633.5,0.38382723]
[1724314301974,5.2333,2633.7,2633.5,0.38382723]
[1724314302489,0.37958,2633.6,2633.5,0.38382723]
[1724314303089,0.37958,2633.6,2633.5,0.38383723]
[1724314303289,1.32853,2633.6,2633.5,0.00424723]
[1724314303492,12.74933,2633.6,2633.5,0.00424723]
[1724314309197,0.37962,2633.3,2633.0,0.37966]
[1724314309394,3.5304,2633.2,2632.9,1.8499]
[1724314309587,0.37966,2633.1,2632.9,1.8499]
[1724314309889,0.37966,2633.1,2632.8,2.15238]
[1724314310300,0.38297843,2633.1,2632.8,2.1563579]
[1724314310894,0.38297843,2633.1,2632.8,0.3836579]
[1724314310895,0.37966,2633.0,2632.8,0.3836579]
[1724314311093,0.38297843,2633.1,2632.8,0.3836579]
[1724314311292,0.37967,2633.0,2632.8,0.3836579]
[1724314311485,0.38296843,2633.1,2632.8,0.3836579]
[1724314311796,0.37967,2633.0,2632.8,0.3836679]
[1724314311996,3.2078,2632.9,2632.1,0.99192354]
[1724314312188,6.78112,2632.6,2631.7,0.94963]
[1724314312388,0.37977,2632.3,2632.1,0.37979]
[1724314312695,0.94943,2632.3,2632.0,3.338]
[1724314312881,0.37979,2632.1,2632.0,1.6818]
[1724314313081,0.37979,2632.1,2632.0,1.68585789]
[1724314313286,0.37979,2632.1,2632.0,0.00405789]
[1724314313489,0.37979,2632.2,2632.0,0.00405789]
[1724314313893,0.37979,2632.1,2632.0,0.00405789]
[1724314314697,4.9325,2632.3,2632.0,0.00405789]
[1724314314889,4.9325,2632.3,2632.0,0.38386789]
[1724314314890,0.37979,2632.2,2632.0,0.38386789]
[1724314315090,0.37979,2632.2,2632.0,0.00405789]
[1724314315395,0.37979,2632.1,2632.0,0.00405789]
[1724314315695,4.9325,2632.3,2632.0,0.00405789]
[1724314315696,0.37979,2632.2,2632.0,0.00405789]
[1724314316494,4.9325,2632.3,2632.1,0.37979]
[1724314316698,4.9325,2632.3,2632.2,0.37978]
[1724314316996,4.9325,2632.3,2632.1,0.37979]
[1724314316997,3.2078,2632.3,2632.1,0.37979]
[1724314317892,3.2078,2632.3,2632.2,1.6993]
[1724314318094,3.2078,2632.3,2632.2,2.07908]
[1724314320395,3.2078,2632.3,2632.2,1.6993]
[1724314321398,0.37979,2632.2,2632.0,0.00405789]
[1724314321601,3.2078,2632.3,2632.0,0.00405789]
[1724314321794,3.58757,2632.3,2632.0,0.00405789]
[1724314321987,3.58756,2632.3,2632.0,0.38385789]
[1724314322789,0.37978,2632.2,2632.0,0.00405789]
[1724314323389,3.2078,2632.3,2632.0,0.00405789]
[1724314323390,0.37979,2632.1,2632.0,0.00405789]
[1724314323594,0.37979,2632.2,2632.0,0.00405789]
[1724314325202,5.23697,2632.3,2632.0,0.38385789]
[1724314326109,3.2078,2632.1,2632.0,0.38385789]
[1724314327805,3.2078,2632.1,2632.0,4.18305789]
[1724314328009,1.77009584,2632.4,2632.0,6.57677789]
[1724314328010,0.00569584,2632.4,2632.0,6.57677789]
[1724314328308,0.00569584,2632.4,2632.2,0.37977]
[1724314328510,0.00569584,2632.4,2632.3,1.6632]
[1724314328698,0.38544584,2632.4,2632.3,3.4764]
[1724314330402,0.00569584,2632.4,2632.3,3.4764]
[1724314331511,0.38544584,2632.4,2632.3,3.4764]
[1724314333007,0.00569584,2632.4,2632.3,3.4764]
[1724314333207,0.00569584,2632.4,2632.3,3.85616]
[1724314333506,0.00569584,2632.4,2632.3,7.65536]
[1724314334505,1.09969584,2632.4,2632.3,7.65536]
[1724314335131,1.09969584,2632.4,2632.3,3.85616]
[1724314335715,1.09969584,2632.4,2632.3,7.65536]
[1724314339623,1.09969584,2632.4,2632.3,3.85616]
[1724314340524,1.09969584,2632.4,2632.3,3.4764]
[1724314340714,0.37978,2632.2,2632.0,2.20785789]
[1724314340912,1.094,2632.1,2632.0,2.20785789]
[1724314341433,1.094,2632.1,2632.0,6.00705789]
[1724314342515,0.37977,2632.3,2632.1,0.37979]
[1724314342715,3.55869584,2632.4,2632.3,0.37976]
[1724314342921,1.74829584,2632.4,2632.3,0.37976]
[1724314344622,0.00569584,2632.4,2632.3,4.17896]
[1724314345127,0.00569584,2632.4,2632.3,5.90276]
[1724314346832,0.00569584,2632.4,2632.3,6.85218]
[1724314348823,3.61447584,2632.4,2632.0,0.00405789]
[1724314349023,2.6594,2632.1,2632.0,0.00405789]
[1724314349334,2.6594,2632.1,2632.0,0.38386789]
[1724314350623,6.24699,2632.1,2632.0,0.00405789]
[1724314353118,5.8672,2632.1,2632.0,0.38385789]
[1724314353319,3.2078,2632.1,2632.0,0.38385789]
[1724314356429,5.8672,2632.1,2632.0,0.38385789]
[1724314358232,5.8672,2632.1,2632.0,0.00405789]
[1724314358442,5.8672,2632.1,2632.0,0.38385789]
[1724314359922,5.8672,2632.1,2632.0,0.00405789]
[1724314360541,2.6594,2632.1,2632.0,0.38385789]
[1724314360739,5.8672,2632.1,2632.0,0.38385789]
[1724314364135,2.6594,2632.1,2632.0,1.33336789]
[1724314364332,0.00569584,2632.4,2632.3,0.37976]
[1724314364536,2.66509584,2632.4,2632.3,0.37976]
[1724314364741,3.04484584,2632.4,2632.2,0.37977]
[1724314365036,2.6594,2632.3,2632.2,0.37977]
[1724314365235,4.4337,2632.3,2632.2,0.37977]
[1724314366138,4.4337,2632.3,2632.1,3.4159]
[1724314366139,4.81347,2632.3,2632.1,3.79568]
[1724314366340,2.6594,2632.2,2632.1,3.79568]
[1724314366540,2.6594,2632.2,2632.1,0.37978]
[1724314366729,5.8672,2632.2,2632.1,0.37978]
[1724314368132,6.24697,2632.2,2632.1,0.37978]
[1724314368340,0.37979,2632.1,2632.0,0.00405789]
[1724314368539,4.80309,2632.1,2632.0,0.00405789]
[1724314369045,4.80309,2632.1,2632.0,0.38385789]
[1724314369336,4.4233,2632.1,2632.0,0.38385789]
[1724314369737,4.80309,2632.1,2632.0,0.38385789]
[1724314370635,4.4233,2632.1,2632.0,0.38385789]
[1724314372440,5.5173,2632.1,2632.0,0.38385789]
[1724314374444,5.89709,2632.1,2632.0,0.38385789]
[1724314374642,5.5173,2632.1,2632.0,0.38385789]
[1724314375447,5.89709,2632.1,2632.0,0.38385789]
[1724314376153,5.5173,2632.1,2632.0,0.38385789]
[1724314376336,5.89709,2632.1,2632.0,0.38385789]
[1724314377246,5.5173,2632.1,2632.0,0.38385789]
[1724314377844,5.89709,2632.1,2632.0,0.38385789]
[1724314378045,5.5173,2632.1,2632.0,0.38385789]
[1724314383461,3.7534,2632.1,2632.0,0.38385789]
[1724314383856,3.7534,2632.1,2632.0,2.96177789]
[1724314384352,3.7534,2632.1,2632.0,2.01225789]
[1724314384849,3.7534,2632.1,2632.0,2.96177789]
[1724314385052,3.2078,2632.2,2632.1,2.27875]
[1724314385359,0.00569584,2632.4,2632.3,0.37976]
[1724314385555,1.09969584,2632.4,2632.3,0.37976]
[1724314386950,0.00569584,2632.4,2632.3,0.37976]
[1724314392261,3.2078,2632.8,2632.7,1.32897]
[1724314392461,1.65861843,2633.1,2633.0,0.37966]
[1724314392656,5.41201843,2633.1,2633.0,0.37966]
[1724314395668,5.79166843,2633.1,2633.0,0.37966]
[1724314395968,5.79166843,2633.1,2632.9,0.37967]
[1724314396169,4.3018,2633.0,2632.9,0.37967]
[1724314396368,6.9612,2633.0,2632.9,0.37967]
[1724314398875,3.2078,2633.0,2632.9,1.32886]
[1724314399081,3.2078,2633.0,2632.9,0.37967]
[1724314399765,5.8672,2633.0,2632.9,0.37967]
[1724314401267,3.2078,2633.0,2632.9,0.37967]
[1724314402469,5.8672,2633.0,2632.9,1.47367]
[1724314402875,3.2078,2633.0,2632.9,2.42286]
[1724314405387,91.38325932,2632.9,2632.8,2.59311584]
[1724314405567,91.38325932,2632.9,2632.8,1.47938584]
[1724314405769,93.02615932,2632.9,2632.8,0.38538584]
[1724314406082,95.68555932,2632.9,2632.8,0.38538584]
[1724314406578,95.68555932,2632.9,2632.7,2.0487]
[1724314406579,90.99787348,2632.8,2632.7,2.0487]
[1724314406786,90.99787348,2632.8,2632.7,2.99796]
[1724314407475,87.99992348,2632.7,2632.6,3.76687]
[1724314407676,87.99992348,2632.7,2632.6,4.14659]
[1724314408485,84.42291348,2632.6,2632.5,2.59312]
[1724314408690,84.42291348,2632.6,2632.5,5.01619]
[1724314409585,79.40672348,2632.5,2632.3,0.49866612]
[1724314409785,79.40672348,2632.5,2632.4,2.42312]
[1724314410172,79.40672348,2632.5,2632.4,1.32912]
[1724314410379,79.40672348,2632.5,2632.4,2.42312]
[1724314410670,79.40672348,2632.5,2632.4,1.32912]
[1724314410877,82.06612348,2632.5,2632.4,0.37975]
[1724314411277,83.69242348,2632.5,2632.4,0.37975]
[1724314411784,79.02697348,2632.4,2632.3,2.04337]
[1724314412283,79.02697348,2632.4,2632.3,0.37976]
[1724314412479,79.02697348,2632.4,2632.3,1.47376]
[1724314412480,80.70797348,2632.4,2632.3,1.47376]
[1724314412879,77.55321348,2632.3,2632.2,3.11577]
[1724314413781,73.48801348,2632.2,2632.1,1.6995]
[1724314413988,73.48801348,2632.2,2632.1,4.12277]
[1724314414984,1.681,2632.4,2632.0,0.95354789]
[1724314414985,71.06477348,2632.1,2632.0,0.95354789]
[1724314415186,71.06477348,2632.1,2632.0,5.09186789]
[1724314415888,71.06477348,2632.1,2631.9,1.6385]
[1724314415889,65.97301559,2632.0,2631.9,1.6385]
[1724314416088,65.97301559,2632.0,2631.9,2.7325]
[1724314416590,65.97301559,2632.0,2631.9,5.01142]
[1724314416979,65.97301559,2632.0,2631.9,6.72071687]
[1724314418086,59.25254872,2631.9,2631.8,7.90698]
[1724314418277,59.25254872,2631.9,2631.8,9.00098]
[1724314418478,59.25254872,2631.9,2631.8,10.3304]
[1724314418685,59.25254872,2631.9,2631.8,19.1304]
[1724314418885,59.25254872,2631.9,2631.8,12.22958]
[1724314419089,59.25254872,2631.9,2631.8,12.23280582]
[1724314420588,48.9192829,2631.8,2631.7,6.63179]
[1724314420791,48.9192829,2631.8,2631.7,9.62504]
[1724314420982,48.9192829,2631.8,2631.7,18.42504]
[1724314421178,48.9192829,2631.8,2631.7,21.27614]
[1724314421385,48.9192829,2631.8,2631.7,18.07241392]
[1724314422197,48.9192829,2631.8,2631.7,13.07241392]
[1724314422391,48.9192829,2631.8,2631.7,2.28316392]
[1724314422693,45.54226898,2631.7,2631.6,2.77680174]
[1724314422894,45.54226898,2631.7,2631.6,3.37318]
[1724314423581,45.54226898,2631.7,2631.6,3.37712403]
[1724314424176,47.15256898,2631.7,2631.6,3.37712403]
[1724314424793,42.16514495,2631.6,2631.5,1.64795255]
[1724314424982,42.16514495,2631.6,2631.5,5.02123255]
[1724314425288,42.16514495,2631.6,2631.5,8.82123255]
[1724314425689,42.16514495,2631.6,2631.5,8.82416886]
[1724314426092,43.88434495,2631.6,2631.5,2.78456886]
[1724314426284,43.88434495,2631.6,2631.5,2.28221631]
[1724314426482,43.88434495,2631.6,2631.5,3.37621631]
[1724314426993,38.78892864,2631.5,2631.4,2.27935]
[1724314427189,38.78892864,2631.5,2631.4,3.37335]
[1724314427394,38.78892864,2631.5,2631.4,7.17335]
[1724314427894,38.78892864,2631.5,2631.4,7.17794374]
[1724314428103,38.78892864,2631.5,2631.4,3.37794374]
[1724314428992,35.4110549,2631.4,2631.3,4.53679489]
[1724314429294,35.4110549,2631.4,2631.3,1.32967]
[1724314429490,35.4110549,2631.4,2631.3,3.37344]
[1724314430190,35.4110549,2631.4,2631.3,3.37818226]
[1724314431189,32.03289264,2631.3,2631.1,1.1456]
[1724314431384,32.03289264,2631.3,2631.2,3.37352]
[1724314431385,33.73339264,2631.3,2631.2,3.37352]
[1724314432185,33.73339264,2631.3,2631.2,2.28360701]
[1724314432591,33.73339264,2631.3,2631.2,3.37760701]
[1724314433087,36.39279264,2631.3,2631.2,1.47392]
[1724314433286,36.39279264,2631.3,2631.0,4.65482862]
[1724314433287,29.60917264,2631.2,2631.0,4.65482862]
[1724314433599,29.60917264,2631.2,2631.1,3.37361]
[1724314433797,29.60917264,2631.2,2631.1,12.17441]
[1724314433993,29.61293004,2631.2,2631.1,12.17730538]
[1724314434503,17.43186726,2631.1,2631.0,5.99716862]
[1724314434796,16.86179822,2631.1,2631.0,9.37087862]
[1724314435491,16.86179822,2631.1,2631.0,9.37529931]
[1724314436399,0.0037574,2631.2,2631.0,5.75326931]
[1724314436600,10.72859891,2631.0,2630.9,2.63861]
[1724314436794,10.72859891,2631.0,2630.9,4.11257]
[1724314437505,10.72859891,2631.0,2630.9,4.11731843]
[1724314438606,5.66145048,2630.9,2630.8,6.87047354]
[1724314438806,5.66145048,2630.9,2630.8,9.29440354]
[1724314438998,5.66145048,2630.9,2630.8,13.20040354]
[1724314439193,5.66145048,2630.9,2630.8,13.78948655]
[1724314439593,5.66145048,2630.9,2630.8,8.79415281]
[1724314440401,5.66145048,2630.9,2630.8,13.79415281]
[1724314440598,5.66145048,2630.9,2630.8,16.68628707]
[1724314440919,0.0037574,2631.2,2631.1,1.32977]
[1724314441098,0.0037574,2631.2,2631.1,2.42377]
[1724314446206,0.0037574,2631.2,2631.1,3.37361]
[1724314446402,3.03241199,2631.4,2631.3,2.27944]
[1724314446606,3.03241199,2631.4,2631.3,3.37344]
[1724314446820,4.68661199,2631.4,2631.3,3.37344]
[1724314447320,4.69149523,2631.4,2631.3,3.37344]
[1724314449716,4.69149523,2631.4,2631.3,3.85811]
[1724314453022,6.31399523,2631.4,2631.3,3.85811]
[1724314453721,6.31399523,2631.4,2631.3,3.37344]
[1724314456323,6.31399523,2631.4,2631.3,4.36536354]
[1724314457207,6.48938324,2631.4,2631.3,4.36536354]
[1724314458123,4.86688324,2631.4,2631.3,4.36536354]
[1724314458317,4.47171043,2631.4,2631.3,6.26539024]
[1724314458518,4.47171043,2631.4,2631.3,7.83589024]
[1724314459417,4.47171043,2631.4,2631.3,6.8439667]
[1724314459621,4.47171043,2631.4,2631.3,4.94394]
[1724314459935,4.47171043,2631.4,2631.3,7.83842916]
[1724314460223,4.47171043,2631.4,2631.3,6.84393855]
[1724314461216,4.47171043,2631.4,2631.3,8.32185801]
[1724314462616,1.26391043,2631.4,2631.3,8.32185801]
[1724314462825,2.96461043,2631.4,2631.3,5.27343855]
[1724314463018,2.96461043,2631.4,2631.3,6.26826346]
[1724314463214,6.17241043,2631.4,2631.3,6.26826346]
[1724314463721,6.17241043,2631.4,2631.3,4.36826491]
[1724314464129,6.17241043,2631.4,2631.3,6.26841304]
[1724314464422,6.17241043,2631.4,2631.3,5.27358813]
[1724314464626,6.17241043,2631.4,2631.3,5.2735569]
[1724314465418,12.63261043,2631.4,2631.3,6.75147636]
[1724314467124,6.17241043,2631.4,2631.3,5.2735569]
[1724314468127,2.96461043,2631.4,2631.3,7.24411618]
[1724314468824,2.96461043,2631.4,2631.3,7.24401382]
[1724314469025,6.17241043,2631.4,2631.3,7.24401382]
[1724314469627,6.17241043,2631.4,2631.3,7.24401251]
[1724314470123,2.96461043,2631.4,2631.3,9.14354251]
[1724314470326,0.00488324,2631.4,2631.3,9.14354251]
[1724314470822,0.00488324,2631.4,2631.3,12.94353248]
[1724314471327,0.00488324,2631.4,2631.3,10.9729732]
[1724314471626,3.2078,2631.7,2631.6,2.27918]
[1724314471822,3.2078,2631.7,2631.6,4.17919323]
[1724314471823,2.0518,2631.7,2631.6,4.17919323]
[1724314472019,1.630336,2631.7,2631.6,4.17919323]
[1724314472221,1.630336,2631.7,2631.6,5.73989323]
[1724314472417,1.63394646,2631.7,2631.6,5.73989323]
[1724314472817,0.00361046,2631.7,2631.6,5.73989323]
[1724314474116,0.00361046,2631.7,2631.6,7.233345]
[1724314474522,0.00361046,2631.7,2631.6,7.23315457]
[1724314474719,0.00361046,2631.7,2631.6,5.67243296]
[1724314476330,0.00361046,2631.7,2631.6,6.15334904]
[1724314477731,6.46381046,2631.7,2631.6,5.67243296]
[1724314479537,6.46381046,2631.7,2631.6,5.67246725]
[1724314480840,0.00361046,2631.7,2631.6,5.67246725]
[1724314481840,0.00361046,2631.7,2631.6,5.86315133]
[1724314482139,3.2078,2632.4,2632.3,0.37976]
[1724314482335,9.668,2632.4,2632.3,1.47376]
[1724314482539,14.668,2632.4,2632.3,1.47376]
[1724314483032,14.67122143,2632.4,2632.3,1.47376]
[1724314487942,16.23452143,2632.4,2632.3,1.47376]
[1724314488646,16.23452143,2632.4,2632.3,0.37976]
[1724314494233,16.23452143,2632.4,2632.2,0.37976]
[1724314494435,7.9075,2632.3,2632.1,1.47947584]
[1724314494747,7.93398,2632.2,2631.8,5.65982]
[1724314494939,9.668,2631.9,2631.8,5.65982]
[1724314495336,14.668,2631.9,2631.8,5.65982]
[1724314495537,11.4602,2631.9,2631.8,6.6094]
[1724314495834,6.4602,2631.9,2631.8,6.6094]
[1724314496144,1.4435,2632.1,2632.0,0.3798]
[1724314496340,12.9037,2632.1,2632.0,1.4738]
[1724314497739,14.3641,2632.1,2632.0,1.4738]
[1724314502637,14.3641,2632.1,2631.8,0.37982]
[1724314502843,9.668,2631.9,2631.8,1.47382]
[1724314503038,9.668,2631.9,2631.8,1.47383]
[1724314503241,14.668,2631.9,2631.8,1.47383]
[1724314505745,14.668,2631.9,2631.8,3.37301]
[1724314506139,1.4604,2632.1,2632.0,1.32932]
[1724314506355,1.4604,2632.1,2632.0,2.42332]
[1724314506356,7.9206,2632.1,2632.0,2.42332]
[1724314506549,6.4602,2632.1,2632.0,3.41812415]
[1724314508650,6.4602,2632.1,2632.0,2.42332]
[1724314508852,6.4602,2632.1,2632.0,3.41812415]
[1724314509439,6.4602,2632.1,2632.0,1.4738]
[1724314510042,11.4602,2632.1,2632.0,1.4738]
[1724314510645,11.4602,2632.1,2631.9,1.47381]
[1724314510846,1.4037,2632.0,2631.9,1.094]
[1724314511049,7.8639,2632.0,2631.9,1.094]
[1724314511256,7.8639,2632.0,2631.8,0.37983]
[1724314511257,12.8639,2632.0,2631.8,1.47383]
[1724314511456,11.1844,2631.9,2631.8,1.47383]
[1724314511850,16.1844,2631.9,2631.8,1.47383]
[1724314514854,16.1844,2631.9,2631.8,1.094]
[1724314515859,16.1844,2631.9,2631.5,5.28]
[1724314516062,9.668,2631.6,2631.5,1.47388]
[1724314516453,14.668,2631.6,2631.5,1.47388]
[1724314517058,14.668,2631.6,2631.5,1.094]
[1724314517259,14.668,2631.6,2631.4,1.47388]
[1724314517456,9.4314,2631.5,2631.4,1.47388]
[1724314517849,14.4314,2631.5,2631.4,1.47388]
[1724314522559,14.4314,2631.5,2631.4,2.42362]
[1724314522560,11.4602,2631.5,2631.4,2.42362]
[1724314522766,12.8565,2631.5,2631.4,2.42362]
[1724314523068,12.8565,2631.5,2631.4,1.47388]
[1724314524264,12.8565,2631.5,2631.1,0.94984]
[1724314524559,6.3963,2631.5,2631.3,0.37991]
[1724314524760,3.2078,2631.4,2631.3,0.37991]
[1724314525061,9.668,2631.4,2631.2,1.094]
[1724314525362,7.7712,2631.3,2631.2,1.47392]
[1724314525863,12.7712,2631.3,2631.2,1.47392]
[1724314528867,14.0624,2631.3,2631.2,1.47392]
[1724314529071,14.0624,2631.3,2631.2,1.094]
[1724314529263,14.0624,2631.3,2631.2,1.47392]
[1724314529568,14.0624,2631.3,2630.8,0.00466626]
[1724314529868,3.2078,2631.1,2631.0,1.47394]
[1724314530067,6.4602,2630.9,2630.8,0.38464626]
[1724314530262,7.5542,2630.9,2630.8,0.38464626]
[1724314530568,11.4602,2630.9,2630.8,0.38464626]
[1724314530975,12.5542,2630.9,2630.8,0.38464626]
[1724314532267,11.4602,2630.9,2630.8,0.38464626]
[1724314533771,17.5542,2630.9,2630.8,0.00466626]
[1724314534068,11.4602,2630.9,2630.8,0.38464626]
[1724314535767,11.4602,2630.9,2630.8,1.33459626]
[1724314537271,3.21349584,2631.1,2631.0,1.32983]
[1724314537476,8.21349584,2631.1,2631.0,1.32983]